[Event "Titled Tuesday Blitz February 21 Late 2023"]
[White "Oganian, Miran"]
[Black "Goncalves, Davi Sulzbacher"]
[WhiteFideId "4122488"]
[BlackFideId "2154510"]
[WhiteElo "2439"]
[BlackElo "2282"]
[Result "1-0"]
[Round "01"]
[TimeControl "180+2"]
[Date "2023.02.21"]
[WhiteClock "0:00:07"]
[BlackClock "0:00:01"]

1. e4 {[%clk 0:02:56]}  c5 {[%clk 0:02:56]} 2. Nf3 {[%clk 0:02:56]}  Nc6 {[%clk 0:02:57]} 3. c3 {[%clk 0:02:52]}  Nf6 {[%clk 0:02:56]} 4. e5 {[%clk 0:02:52]}  Nd5 {[%clk 0:02:57]} 5. d4 {[%clk 0:02:52]}  cxd4 {[%clk 0:02:57]} 6. cxd4 {[%clk 0:02:53]}  d6 {[%clk 0:02:57]} 7. Bc4 {[%clk 0:02:54]}  Nb6 {[%clk 0:02:55]} 8. Bb3 {[%clk 0:02:53]}  e6 {[%clk 0:02:55]} 9. Nc3 {[%clk 0:02:52]}  dxe5 {[%clk 0:02:52]} 10. O-O {[%clk 0:02:51]}  exd4 {[%clk 0:02:51]} 11. Ne4 {[%clk 0:02:46]}  Be7 {[%clk 0:02:48]} 12. Qe2 {[%clk 0:02:43]}  O-O {[%clk 0:02:45]} 13. Rd1 {[%clk 0:02:41]}  e5 {[%clk 0:02:34]} 14. h3 {[%clk 0:02:36]}  Nd5 {[%clk 0:02:16]} 15. Ng3 {[%clk 0:02:34]}  Bf6 {[%clk 0:02:02]} 16. Nh5 {[%clk 0:02:31]}  Be6 {[%clk 0:01:57]} 17. Bc2 {[%clk 0:02:21]}  g6 {[%clk 0:01:48]} 18. Nxf6+ {[%clk 0:02:16]}  Qxf6 {[%clk 0:01:49]} 19. Re1 {[%clk 0:02:02]}  Nf4 {[%clk 0:01:25]} 20. Bxf4 {[%clk 0:01:47]}  exf4 {[%clk 0:01:24]} 21. Rad1 {[%clk 0:01:39]}  Rad8 {[%clk 0:01:16]} 22. Nd2 {[%clk 0:01:33]}  d3 {[%clk 0:01:01]} 23. Bxd3 {[%clk 0:01:27]}  Qxb2 {[%clk 0:01:01]} 24. Qf3 {[%clk 0:01:10]}  Ne5 {[%clk 0:00:49]} 25. Rxe5 {[%clk 0:00:44]}  Qxe5 {[%clk 0:00:50]} 26. Be4 {[%clk 0:00:34]}  b5 {[%clk 0:00:33]} 27. Bc6 {[%clk 0:00:28]}  b4 {[%clk 0:00:33]} 28. Kf1 {[%clk 0:00:18]}  Rd6 {[%clk 0:00:30]} 29. Re1 {[%clk 0:00:18]}  Qc5 {[%clk 0:00:29]} 30. Ne4 {[%clk 0:00:17]}  Qxc6 {[%clk 0:00:27]} 31. Qxf4 {[%clk 0:00:17]}  Qc4+ {[%clk 0:00:21]} 32. Kg1 {[%clk 0:00:15]}  Rd4 {[%clk 0:00:19]} 33. Nf6+ {[%clk 0:00:15]}  Kg7 {[%clk 0:00:19]} 34. Nh5+ {[%clk 0:00:12]}  Kg8 {[%clk 0:00:17]} 35. Nf6+ {[%clk 0:00:12]}  Kg7 {[%clk 0:00:12]} 36. Nh5+ {[%clk 0:00:12]}  Kg8 {[%clk 0:00:08]} 37. Qf6 {[%clk 0:00:05]}  gxh5 {[%clk 0:00:07]} 38. Re3 {[%clk 0:00:05]}  Qc1+ {[%clk 0:00:05]} 39. Kh2 {[%clk 0:00:05]}  Qxe3 {[%clk 0:00:06]} 40. fxe3 {[%clk 0:00:05]}  Rd5 {[%clk 0:00:07]} 41. e4 {[%clk 0:00:05]}  Ra5 {[%clk 0:00:06]} 42. e5 {[%clk 0:00:06]}  Rc8 {[%clk 0:00:06]} 43. Qg5+ {[%clk 0:00:06]}  Kf8 {[%clk 0:00:07]} 44. Qxh5 {[%clk 0:00:06]}  Ke8 {[%clk 0:00:07]} 45. Qxh7 {[%clk 0:00:06]}  Rcc5 {[%clk 0:00:08]} 46. Qh8+ {[%clk 0:00:06]}  Kd7 {[%clk 0:00:08]} 47. Qb8 {[%clk 0:00:06]}  Rxe5 {[%clk 0:00:08]} 48. Qxb4 {[%clk 0:00:06]}  Red5 {[%clk 0:00:07]} 49. h4 {[%clk 0:00:07]}  Rdb5 {[%clk 0:00:06]} 50. Qd4+ {[%clk 0:00:07]}  Rd5 {[%clk 0:00:06]} 51. Qb4 {[%clk 0:00:07]}  Ke8 {[%clk 0:00:04]} 52. a4 {[%clk 0:00:06]}  f5 {[%clk 0:00:03]} 53. Qb8+ {[%clk 0:00:06]}  Kf7 {[%clk 0:00:03]} 54. Qh8 {[%clk 0:00:07]}  f4 {[%clk 0:00:03]} 55. Qh7+ {[%clk 0:00:06]}  Ke8 {[%clk 0:00:04]} 56. Qh6 {[%clk 0:00:07]}  Bf7 {[%clk 0:00:04]} 57. Qxf4 {[%clk 0:00:07]}  Ra6 {[%clk 0:00:03]} 58. Qb8+ {[%clk 0:00:06]}  Rd8 {[%clk 0:00:02]} 59. Qe5+ {[%clk 0:00:06]}  Kf8 {[%clk 0:00:01]} 60. Qb5 {[%clk 0:00:07]}  Rb6 {[%clk 0:00:01]} 61. Qg5 {[%clk 0:00:07]}  Re6 {[%clk 0:00:01]} 62. Qxd8+ {[%clk 0:00:07]} 1-0


[Site "https://www.chess.com"]

[Event "Titled Tuesday Blitz February 21 Late 2023"]
[White "Hambleton, Aman"]
[Black "Ansh M Shah"]
[WhiteFideId "2606577"]
[BlackFideId "25033379"]
[WhiteElo "2420"]
[BlackElo "2171"]
[Result "1-0"]
[Round "01"]
[TimeControl "180+2"]
[Date "2023.02.21"]
[WhiteClock "0:00:16"]
[BlackClock "0:00:14"]

1. d4 {[%clk 0:02:57]}  Nf6 {[%clk 0:02:56]} 2. c4 {[%clk 0:02:52]}  e6 {[%clk 0:02:56]} 3. Nc3 {[%clk 0:02:46]}  d5 {[%clk 0:02:54]} 4. cxd5 {[%clk 0:02:40]}  exd5 {[%clk 0:02:53]} 5. Bg5 {[%clk 0:02:26]}  Be7 {[%clk 0:02:48]} 6. e3 {[%clk 0:02:23]}  O-O {[%clk 0:02:42]} 7. Bd3 {[%clk 0:02:20]}  c6 {[%clk 0:02:37]} 8. Nge2 {[%clk 0:02:20]}  Nbd7 {[%clk 0:02:36]} 9. Qc2 {[%clk 0:02:20]}  h6 {[%clk 0:02:34]} 10. Bh4 {[%clk 0:02:20]}  Re8 {[%clk 0:02:35]} 11. O-O {[%clk 0:02:20]}  Ne4 {[%clk 0:02:33]} 12. Bxe7 {[%clk 0:02:18]}  Qxe7 {[%clk 0:02:34]} 13. Rae1 {[%clk 0:02:10]}  Ndf6 {[%clk 0:02:30]} 14. f3 {[%clk 0:02:09]}  Nxc3 {[%clk 0:02:29]} 15. Nxc3 {[%clk 0:02:10]}  Be6 {[%clk 0:02:28]} 16. Qf2 {[%clk 0:02:00]}  Rad8 {[%clk 0:02:19]} 17. h3 {[%clk 0:01:57]}  Qb4 {[%clk 0:02:10]} 18. Re2 {[%clk 0:01:51]}  c5 {[%clk 0:01:55]} 19. a3 {[%clk 0:01:51]}  Qa5 {[%clk 0:01:50]} 20. dxc5 {[%clk 0:01:51]}  Qxc5 {[%clk 0:01:51]} 21. Rd2 {[%clk 0:01:50]}  Kh8 {[%clk 0:01:39]} 22. Nb5 {[%clk 0:01:34]}  a6 {[%clk 0:01:32]} 23. Nd4 {[%clk 0:01:33]}  Qb6 {[%clk 0:01:31]} 24. Rc1 {[%clk 0:01:31]}  Rc8 {[%clk 0:01:31]} 25. Rdc2 {[%clk 0:01:28]}  Rxc2 {[%clk 0:01:28]} 26. Rxc2 {[%clk 0:01:20]}  Rc8 {[%clk 0:01:22]} 27. Rxc8+ {[%clk 0:01:13]}  Bxc8 {[%clk 0:01:23]} 28. Qc2 {[%clk 0:01:14]}  Be6 {[%clk 0:01:19]} 29. b4 {[%clk 0:00:56]}  Ne8 {[%clk 0:00:44]} 30. Kf2 {[%clk 0:00:39]}  Qc7 {[%clk 0:00:38]} 31. Qc5 {[%clk 0:00:17]}  Kg8 {[%clk 0:00:23]} 32. f4 {[%clk 0:00:17]}  Qxc5 {[%clk 0:00:18]} 33. bxc5 {[%clk 0:00:18]}  Bd7 {[%clk 0:00:18]} 34. e4 {[%clk 0:00:14]}  dxe4 {[%clk 0:00:18]} 35. Bxe4 {[%clk 0:00:15]}  Bc8 {[%clk 0:00:16]} 36. Ke3 {[%clk 0:00:10]}  Kf8 {[%clk 0:00:15]} 37. Nb3 {[%clk 0:00:06]}  Ke7 {[%clk 0:00:15]} 38. Na5 {[%clk 0:00:06]}  Kd7 {[%clk 0:00:12]} 39. Nxb7 {[%clk 0:00:05]}  Kc7 {[%clk 0:00:10]} 40. Na5 {[%clk 0:00:04]}  Nf6 {[%clk 0:00:09]} 41. Bf3 {[%clk 0:00:05]}  Nd7 {[%clk 0:00:08]} 42. Kd4 {[%clk 0:00:05]}  Nf8 {[%clk 0:00:06]} 43. g3 {[%clk 0:00:02]}  Ne6+ {[%clk 0:00:07]} 44. Kc4 {[%clk 0:00:03]}  Nd8 {[%clk 0:00:07]} 45. h4 {[%clk 0:00:02]}  f6 {[%clk 0:00:07]} 46. Kb4 {[%clk 0:00:02]}  g5 {[%clk 0:00:07]} 47. hxg5 {[%clk 0:00:02]}  fxg5 {[%clk 0:00:08]} 48. fxg5 {[%clk 0:00:02]}  hxg5 {[%clk 0:00:09]} 49. Bd5 {[%clk 0:00:03]}  Be6 {[%clk 0:00:08]} 50. Be4 {[%clk 0:00:03]}  Nf7 {[%clk 0:00:07]} 51. Nc4 {[%clk 0:00:03]}  Bxc4 {[%clk 0:00:07]} 52. Kxc4 {[%clk 0:00:04]}  Ne5+ {[%clk 0:00:07]} 53. Kd4 {[%clk 0:00:03]}  Ng4 {[%clk 0:00:07]} 54. a4 {[%clk 0:00:02]}  Nf2 {[%clk 0:00:07]} 55. Bd3 {[%clk 0:00:01]}  Nh1 {[%clk 0:00:07]} 56. g4 {[%clk 0:00:02]}  Nf2 {[%clk 0:00:07]} 57. Be2 {[%clk 0:00:02]}  Nh3 {[%clk 0:00:07]} 58. Ke5 {[%clk 0:00:01]}  Nf4 {[%clk 0:00:08]} 59. Bxa6 {[%clk 0:00:02]}  Kc6 {[%clk 0:00:08]} 60. Kf5 {[%clk 0:00:01]}  Nh3 {[%clk 0:00:08]} 61. Bb5+ {[%clk 0:00:01]}  Kxc5 {[%clk 0:00:07]} 62. Bf1 {[%clk 0:00:02]}  Nf2 {[%clk 0:00:08]} 63. Kxg5 {[%clk 0:00:02]}  Ne4+ {[%clk 0:00:08]} 64. Kf4 {[%clk 0:00:02]}  Nd2 {[%clk 0:00:08]} 65. Bb5 {[%clk 0:00:03]}  Nb3 {[%clk 0:00:08]} 66. g5 {[%clk 0:00:03]}  Nd4 {[%clk 0:00:09]} 67. Ke5 {[%clk 0:00:03]}  Nf3+ {[%clk 0:00:07]} 68. Kf6 {[%clk 0:00:04]}  Nh4 {[%clk 0:00:04]} 69. g6 {[%clk 0:00:04]}  Nxg6 {[%clk 0:00:05]} 70. Kxg6 {[%clk 0:00:05]}  Kb6 {[%clk 0:00:05]} 71. Kf5 {[%clk 0:00:06]}  Ka7 {[%clk 0:00:06]} 72. Ke4 {[%clk 0:00:06]}  Kb8 {[%clk 0:00:06]} 73. Kd3 {[%clk 0:00:07]}  Ka7 {[%clk 0:00:07]} 74. Kc3 {[%clk 0:00:08]}  Kb8 {[%clk 0:00:08]} 75. Kb4 {[%clk 0:00:09]}  Ka7 {[%clk 0:00:09]} 76. Be2 {[%clk 0:00:10]}  Kb8 {[%clk 0:00:10]} 77. a5 {[%clk 0:00:10]}  Ka7 {[%clk 0:00:10]} 78. Kb5 {[%clk 0:00:11]}  Kb8 {[%clk 0:00:11]} 79. a6 {[%clk 0:00:12]}  Ka7 {[%clk 0:00:12]} 80. Ka5 {[%clk 0:00:13]}  Kb8 {[%clk 0:00:13]} 81. Kb6 {[%clk 0:00:14]}  Ka8 {[%clk 0:00:13]} 82. Bf3+ {[%clk 0:00:14]}  Kb8 {[%clk 0:00:14]} 83. a7+ {[%clk 0:00:15]}  Kc8 {[%clk 0:00:14]} 84. a8=Q+ {[%clk 0:00:16]} 1-0


[Site "https://www.chess.com"]

[Event "Titled Tuesday Blitz February 21 Late 2023"]
[White "Droin, Augustin"]
[Black "Koziorowicz, Michal"]
[WhiteFideId "45105987"]
[BlackFideId "21809194"]
[WhiteElo "2436"]
[BlackElo "2307"]
[Result "1-0"]
[Round "01"]
[TimeControl "180+2"]
[Date "2023.02.21"]
[WhiteClock "0:00:48"]
[BlackClock "0:00:02"]

1. e4 {[%clk 0:02:54]}  e6 {[%clk 0:02:59]} 2. d4 {[%clk 0:02:51]}  d5 {[%clk 0:02:58]} 3. Nc3 {[%clk 0:02:50]}  Bb4 {[%clk 0:02:52]} 4. Ne2 {[%clk 0:02:36]}  dxe4 {[%clk 0:02:50]} 5. a3 {[%clk 0:02:29]}  Bxc3+ {[%clk 0:02:50]} 6. Nxc3 {[%clk 0:02:29]}  Nf6 {[%clk 0:02:50]} 7. Bg5 {[%clk 0:02:28]}  h6 {[%clk 0:02:48]} 8. Bxf6 {[%clk 0:02:27]}  Qxf6 {[%clk 0:02:49]} 9. Nxe4 {[%clk 0:02:27]}  Qe7 {[%clk 0:02:49]} 10. Qd3 {[%clk 0:02:27]}  b6 {[%clk 0:02:47]} 11. O-O-O {[%clk 0:02:27]}  Bb7 {[%clk 0:02:47]} 12. Be2 {[%clk 0:02:27]}  Nd7 {[%clk 0:02:45]} 13. Bf3 {[%clk 0:02:26]}  O-O-O {[%clk 0:02:46]} 14. Kb1 {[%clk 0:02:14]}  Ne5 {[%clk 0:02:45]} 15. Qe3 {[%clk 0:02:14]}  Nxf3 {[%clk 0:02:44]} 16. gxf3 {[%clk 0:02:14]}  Rd7 {[%clk 0:02:22]} 17. Rhg1 {[%clk 0:02:11]}  g6 {[%clk 0:02:22]} 18. Qf4 {[%clk 0:02:00]}  Rhd8 {[%clk 0:01:47]} 19. c3 {[%clk 0:01:30]}  h5 {[%clk 0:01:41]} 20. Rde1 {[%clk 0:01:27]}  Rd5 {[%clk 0:01:39]} 21. Rg5 {[%clk 0:01:26]}  Rxg5 {[%clk 0:01:17]} 22. Nxg5 {[%clk 0:01:26]}  Rd5 {[%clk 0:01:17]} 23. h4 {[%clk 0:01:19]}  Rf5 {[%clk 0:01:15]} 24. Qg3 {[%clk 0:01:15]}  Qf6 {[%clk 0:01:11]} 25. Re3 {[%clk 0:01:14]}  a5 {[%clk 0:01:09]} 26. Ne4 {[%clk 0:01:10]}  Bxe4+ {[%clk 0:01:09]} 27. fxe4 {[%clk 0:01:04]}  Rxf2 {[%clk 0:01:09]} 28. Ka2 {[%clk 0:01:03]}  Rf4 {[%clk 0:01:06]} 29. Qe1 {[%clk 0:00:58]}  Qxh4 {[%clk 0:01:06]} 30. Qe2 {[%clk 0:00:57]}  Kb7 {[%clk 0:01:02]} 31. d5 {[%clk 0:00:57]}  exd5 {[%clk 0:00:56]} 32. exd5 {[%clk 0:00:58]}  Qg5 {[%clk 0:00:55]} 33. Qb5 {[%clk 0:00:50]}  Rf5 {[%clk 0:00:45]} 34. Qc6+ {[%clk 0:00:48]}  Ka6 {[%clk 0:00:06]} 35. Re8 {[%clk 0:00:49]}  Rxd5 {[%clk 0:00:02]} 36. Ra8# {[%clk 0:00:48]} 1-0


[Site "https://www.chess.com"]

[Event "Titled Tuesday Blitz February 21 Late 2023"]
[White "Nasuta, Grzegorz"]
[Black "Carrasco Miranda, Andres"]
[WhiteFideId "1141686"]
[BlackFideId "3405990"]
[WhiteElo "2552"]
[BlackElo "2240"]
[Result "1-0"]
[Round "01"]
[TimeControl "180+2"]
[Date "2023.02.21"]
[WhiteClock "0:00:40"]
[BlackClock "0:00:09"]

1. e4 {[%clk 0:03:00]}  c5 {[%clk 0:01:40]} 2. Nf3 {[%clk 0:02:58]}  d6 {[%clk 0:01:16]} 3. Bb5+ {[%clk 0:02:54]}  Nd7 {[%clk 0:01:15]} 4. O-O {[%clk 0:02:54]}  Nf6 {[%clk 0:01:14]} 5. Re1 {[%clk 0:02:54]}  a6 {[%clk 0:01:13]} 6. Bf1 {[%clk 0:02:54]}  g6 {[%clk 0:01:13]} 7. c3 {[%clk 0:02:54]}  Bg7 {[%clk 0:01:13]} 8. d4 {[%clk 0:02:55]}  cxd4 {[%clk 0:01:14]} 9. cxd4 {[%clk 0:02:55]}  e5 {[%clk 0:01:15]} 10. Nc3 {[%clk 0:02:54]}  O-O {[%clk 0:01:14]} 11. Be3 {[%clk 0:02:38]}  b5 {[%clk 0:01:13]} 12. dxe5 {[%clk 0:02:07]}  dxe5 {[%clk 0:01:14]} 13. a4 {[%clk 0:02:04]}  b4 {[%clk 0:01:14]} 14. Nd5 {[%clk 0:02:05]}  Nxd5 {[%clk 0:01:14]} 15. Qxd5 {[%clk 0:02:04]}  Rb8 {[%clk 0:01:13]} 16. Red1 {[%clk 0:02:02]}  Qf6 {[%clk 0:00:43]} 17. Rac1 {[%clk 0:01:58]}  Nb6 {[%clk 0:00:43]} 18. Qa5 {[%clk 0:01:49]}  Bg4 {[%clk 0:00:35]} 19. Qxa6 {[%clk 0:01:26]}  Bxf3 {[%clk 0:00:34]} 20. gxf3 {[%clk 0:01:26]}  h5 {[%clk 0:00:13]} 21. b3 {[%clk 0:01:21]}  h4 {[%clk 0:00:14]} 22. a5 {[%clk 0:01:20]}  Qxf3 {[%clk 0:00:12]} 23. axb6 {[%clk 0:00:48]}  Qg4+ {[%clk 0:00:11]} 24. Kh1 {[%clk 0:00:49]}  h3 {[%clk 0:00:11]} 25. Qe2 {[%clk 0:00:48]}  Qxe4+ {[%clk 0:00:10]} 26. f3 {[%clk 0:00:48]}  Qh4 {[%clk 0:00:09]} 27. Qf2 {[%clk 0:00:47]}  Qh5 {[%clk 0:00:08]} 28. Qg3 {[%clk 0:00:45]}  f5 {[%clk 0:00:09]} 29. Qxh3 {[%clk 0:00:45]}  Qxh3 {[%clk 0:00:08]} 30. Bxh3 {[%clk 0:00:46]}  f4 {[%clk 0:00:08]} 31. Be6+ {[%clk 0:00:40]}  Kh7 {[%clk 0:00:08]} 32. Bc5 {[%clk 0:00:40]}  Rfc8 {[%clk 0:00:08]} 33. Bxc8 {[%clk 0:00:40]}  Rxc8 {[%clk 0:00:09]} 1-0


[Site "https://www.chess.com"]

[Event "Titled Tuesday Blitz February 21 Late 2023"]
[White "Nunez V, Gustavo Eduardo"]
[Black "Dourerassou, Jonathan"]
[WhiteFideId "4403690"]
[BlackFideId "628050"]
[WhiteElo "2212"]
[BlackElo "2414"]
[Result "0-1"]
[Round "01"]
[TimeControl "180+2"]
[Date "2023.02.21"]
[WhiteClock "0:01:18"]
[BlackClock "0:02:06"]

1. e4 {[%clk 0:03:00]}  c5 {[%clk 0:02:58]} 2. c3 {[%clk 0:03:00]}  Nf6 {[%clk 0:02:56]} 3. Qc2 {[%clk 0:02:59]}  b6 {[%clk 0:02:55]} 4. g3 {[%clk 0:02:58]}  Bb7 {[%clk 0:02:55]} 5. Bg2 {[%clk 0:02:59]}  e6 {[%clk 0:02:56]} 6. Ne2 {[%clk 0:02:59]}  d5 {[%clk 0:02:56]} 7. e5 {[%clk 0:02:58]}  Nfd7 {[%clk 0:02:56]} 8. d4 {[%clk 0:02:57]}  Nc6 {[%clk 0:02:56]} 9. O-O {[%clk 0:02:57]}  Rc8 {[%clk 0:02:57]} 10. Qd1 {[%clk 0:02:54]}  Ba6 {[%clk 0:02:57]} 11. Re1 {[%clk 0:02:53]}  cxd4 {[%clk 0:02:55]} 12. cxd4 {[%clk 0:02:54]}  Bb4 {[%clk 0:02:55]} 13. Bd2 {[%clk 0:02:53]}  Bxe2 {[%clk 0:02:46]} 14. Rxe2 {[%clk 0:02:53]}  Nxd4 {[%clk 0:02:45]} 15. Bxb4 {[%clk 0:02:53]}  Rc1 {[%clk 0:02:45]} 16. Re1 {[%clk 0:02:10]}  Rxd1 {[%clk 0:02:43]} 17. Rxd1 {[%clk 0:02:11]}  Nc2 {[%clk 0:02:42]} 18. Bd6 {[%clk 0:02:12]}  Nxa1 {[%clk 0:02:42]} 19. Na3 {[%clk 0:02:13]}  Qc8 {[%clk 0:02:27]} 20. Rxa1 {[%clk 0:02:09]}  f6 {[%clk 0:02:26]} 21. f4 {[%clk 0:02:06]}  Kf7 {[%clk 0:02:23]} 22. Nb5 {[%clk 0:01:57]}  Qc4 {[%clk 0:02:19]} 23. Bf1 {[%clk 0:01:53]}  Qc2 {[%clk 0:02:18]} 24. exf6 {[%clk 0:01:42]}  Nxf6 {[%clk 0:02:15]} 25. Re1 {[%clk 0:01:28]}  Ne4 {[%clk 0:02:14]} 26. Be2 {[%clk 0:01:25]}  Nxd6 {[%clk 0:02:07]} 27. Nxd6+ {[%clk 0:01:26]}  Ke7 {[%clk 0:02:07]} 28. Nf5+ {[%clk 0:01:18]}  Qxf5 {[%clk 0:02:06]} 0-1


[Site "https://www.chess.com"]

[Event "Titled Tuesday Blitz February 21 Late 2023"]
[White "Battlecruiser_Operational"]
[Black "Javakhadze, Zurab"]
[BlackFideId "13603647"]
[WhiteElo "2290"]
[BlackElo "2459"]
[Result "0-1"]
[Round "01"]
[TimeControl "180+2"]
[Date "2023.02.21"]
[WhiteClock "0:00:13"]
[BlackClock "0:02:13"]

1. d4 {[%clk 0:02:59]}  d5 {[%clk 0:02:56]} 2. Nf3 {[%clk 0:02:58]}  e6 {[%clk 0:02:57]} 3. Bg5 {[%clk 0:02:51]}  Be7 {[%clk 0:02:54]} 4. Bxe7 {[%clk 0:02:49]}  Qxe7 {[%clk 0:02:53]} 5. Nbd2 {[%clk 0:02:49]}  Nf6 {[%clk 0:02:53]} 6. e3 {[%clk 0:02:49]}  O-O {[%clk 0:02:53]} 7. Bd3 {[%clk 0:02:48]}  c5 {[%clk 0:02:53]} 8. c3 {[%clk 0:02:48]}  Nc6 {[%clk 0:02:53]} 9. Ne5 {[%clk 0:02:33]}  Nxe5 {[%clk 0:02:52]} 10. dxe5 {[%clk 0:02:33]}  Nd7 {[%clk 0:02:53]} 11. f4 {[%clk 0:02:33]}  f6 {[%clk 0:02:53]} 12. exf6 {[%clk 0:02:29]}  Rxf6 {[%clk 0:02:53]} 13. O-O {[%clk 0:02:29]}  e5 {[%clk 0:02:54]} 14. Re1 {[%clk 0:00:50]}  c4 {[%clk 0:02:33]} 15. fxe5 {[%clk 0:00:31]}  Nxe5 {[%clk 0:02:32]} 16. Be2 {[%clk 0:00:27]}  Bf5 {[%clk 0:02:24]} 17. Nf3 {[%clk 0:00:27]}  Nd3 {[%clk 0:02:18]} 18. Bxd3 {[%clk 0:00:27]}  Bxd3 {[%clk 0:02:19]} 19. Qd2 {[%clk 0:00:20]}  Raf8 {[%clk 0:02:19]} 20. Qf2 {[%clk 0:00:20]}  Qe4 {[%clk 0:02:16]} 21. Qg3 {[%clk 0:00:19]}  h6 {[%clk 0:02:15]} 22. Kh1 {[%clk 0:00:18]}  Rxf3 {[%clk 0:02:14]} 23. gxf3 {[%clk 0:00:18]}  Rxf3 {[%clk 0:02:15]} 24. Qg2 {[%clk 0:00:18]}  Qf5 {[%clk 0:02:15]} 25. Rg1 {[%clk 0:00:18]}  g5 {[%clk 0:02:15]} 26. Qg4 {[%clk 0:00:15]}  Be4 {[%clk 0:02:14]} 27. Rg2 {[%clk 0:00:13]}  Qxg4 {[%clk 0:02:13]} 28. Rxg4 {[%clk 0:00:13]}  Rf1# {[%clk 0:02:13]} 0-1


[Site "https://www.chess.com"]

[Event "Titled Tuesday Blitz February 21 Late 2023"]
[White "Oro, Faustino"]
[Black "Nilsen, Tobias Lang"]
[WhiteFideId "20000197"]
[BlackFideId "1521624"]
[WhiteElo "2269"]
[BlackElo "2247"]
[Result "0-1"]
[Round "01"]
[TimeControl "180+2"]
[Date "2023.02.21"]
[WhiteClock "0:00:07"]
[BlackClock "0:00:16"]

1. e4 {[%clk 0:02:56]}  e6 {[%clk 0:03:00]} 2. d4 {[%clk 0:02:56]}  d5 {[%clk 0:03:00]} 3. Nd2 {[%clk 0:02:57]}  a6 {[%clk 0:03:00]} 4. Ngf3 {[%clk 0:02:55]}  Nf6 {[%clk 0:03:00]} 5. e5 {[%clk 0:02:55]}  Nfd7 {[%clk 0:03:01]} 6. c3 {[%clk 0:02:50]}  c5 {[%clk 0:03:01]} 7. Bd3 {[%clk 0:02:50]}  Nc6 {[%clk 0:03:01]} 8. O-O {[%clk 0:02:50]}  g5 {[%clk 0:03:02]} 9. dxc5 {[%clk 0:02:09]}  g4 {[%clk 0:03:00]} 10. Nd4 {[%clk 0:02:08]}  Ndxe5 {[%clk 0:02:57]} 11. Bc2 {[%clk 0:02:06]}  Bxc5 {[%clk 0:02:55]} 12. N2b3 {[%clk 0:02:04]}  Bd6 {[%clk 0:02:51]} 13. Re1 {[%clk 0:02:02]}  Qf6 {[%clk 0:02:23]} 14. Qe2 {[%clk 0:01:31]}  Bd7 {[%clk 0:02:14]} 15. Nxc6 {[%clk 0:01:26]}  Nxc6 {[%clk 0:02:09]} 16. Be3 {[%clk 0:01:23]}  O-O-O {[%clk 0:02:06]} 17. Nd4 {[%clk 0:01:14]}  e5 {[%clk 0:02:03]} 18. Nxc6 {[%clk 0:01:12]}  Bxc6 {[%clk 0:02:04]} 19. Rad1 {[%clk 0:01:09]}  h5 {[%clk 0:01:45]} 20. Bb6 {[%clk 0:01:04]}  Rde8 {[%clk 0:01:41]} 21. Bb3 {[%clk 0:01:03]}  d4 {[%clk 0:01:09]} 22. Qc4 {[%clk 0:00:45]}  Rhf8 {[%clk 0:00:41]} 23. cxd4 {[%clk 0:00:43]}  exd4 {[%clk 0:00:39]} 24. Bxd4 {[%clk 0:00:43]}  Qf4 {[%clk 0:00:28]} 25. Rxe8+ {[%clk 0:00:14]}  Rxe8 {[%clk 0:00:29]} 26. Be3 {[%clk 0:00:11]}  Qxh2+ {[%clk 0:00:26]} 27. Kf1 {[%clk 0:00:11]}  Qxg2+ {[%clk 0:00:26]} 28. Ke1 {[%clk 0:00:12]}  Rxe3+ {[%clk 0:00:19]} 29. Kd2 {[%clk 0:00:10]}  Qxf2+ {[%clk 0:00:19]} 30. Kc1 {[%clk 0:00:11]}  Qf4 {[%clk 0:00:15]} 31. Kb1 {[%clk 0:00:07]}  Qxc4 {[%clk 0:00:15]} 32. Bxc4 {[%clk 0:00:08]}  Kc7 {[%clk 0:00:15]} 33. a3 {[%clk 0:00:08]}  g3 {[%clk 0:00:16]} 34. Rf1 {[%clk 0:00:07]}  g2 {[%clk 0:00:16]} 35. Rxf7+ {[%clk 0:00:07]}  Kb6 {[%clk 0:00:16]} 0-1


[Site "https://www.chess.com"]